Cogmind - Beta 14 @@@ ROGUE MODE // 2025.03.16 @ 18:07:09 Player: canerib Result: Self-destructed Performance ------------- Evolutions (6) 3000 Regions Visited (13) 2600 Robots Destroyed (33) 165 Value Destroyed (921) 921 Prototype IDs (5) 100 Alien Tech Used (0) 0 Bonus (1057) 1057 TOTAL SCORE: 7843 Bonus ------- Follower Combat Kills 57 Entered DSFs 1000 Cogmind --------- Core Integrity 874/1150 Matter 238/300 Energy 44/160 System Corruption 10% Temperature Cool (0) Movement Walking (90) Location -4/DSF Parts ------- > --- POWER (2) -------- Light Fission Core > --- PROPULSION (6) --- Improved VSS Leg > --- UTILITY (9) ------ Advanced ECM Suite Hacking Suite > --- WEAPON (2) ------- (None) > --- INVENTORY (5) ---- Linear Gravjet Advanced Terrain Scan Processor Advanced Transmission Jammer Mini Grenade Launcher Advanced Datajack Peak State ------------ > --- POWER ------------ Light Fission Core Neutrino Core > --- PROPULSION ------- Combat Airjet Antigrav System Antigrav System Antigrav System Antigrav System Combat Gravmag System > --- UTILITY ---------- Advanced Cooling System Improved Terrain Scan Processor Advanced ECM Suite Improved Powered Armor Hacking Suite Improved Hacking Suite System Shield > --- WEAPON ----------- Coil Gun Coil Gun > --- INVENTORY -------- Antigrav System Improved Terrain Scanner Advanced Shield Generator Mini Grenade Launcher Improved Datajack [Rating: 88] Favorites ----------- Power Light Ion Engine Engine Light Ion Engine Power Core Light Fission Core Propulsion Aluminum Leg Leg Aluminum Leg Hover Unit Antigrav System Flight Unit Improved Flight Unit Utility Hacking Suite Device Advanced ECM Suite Storage Small Storage Unit Processor Improved Terrain Scan Processor Hackware Hacking Suite Protection Improved Powered Armor Weapon Assault Rifle Energy Gun EM Pulse Gun Ballistic Gun Assault Rifle Launcher Mini Grenade Launcher Special Melee Weapon Improved Datajack Build | -11 -10 -9 -8 -7 -6 -6 -5 -5 -5 -4 -4 -4 -4 ------- Run | Yrd Mat Mat Mat Fac Fac DSF Fac Ext Cet Fac Was Fac DSF Slots Evolved 12 | . . 2 2 2 2 . 2 . . 2 . . . Power 1 | . . . . . . . 1 . . . . . . Propulsion 4 | . . 1 1 1 . . 1 . . . . . . Utility 7 | . . 1 1 1 2 . . . . 2 . . . Weapon . | . . . . . . . . . . . . . . Parts Attached 88 | 7 5 7 11 15 5 7 14 7 1 3 . 1 5 Power 13 | 1 2 1 1 2 . . 4 1 1 . . . . Engine 8 | 1 2 1 1 1 . . 1 1 . . . . . Core 5 | . . . . 1 . . 3 . 1 . . . . Reactor . | . . . . . . . . . . . . . . Propulsion 39 | 2 1 4 5 6 . 5 8 3 . . . . 5 Treads . | . . . . . . . . . . . . . . Leg 13 | 2 1 4 1 . . . . . . . . . 5 Wheel . | . . . . . . . . . . . . . . Hover 16 | . . . . . . 5 8 3 . . . . . Flight 10 | . . . 4 6 . . . . . . . . . Utility 24 | 2 . 2 4 4 5 . 2 2 . 2 . 1 . Device 11 | 1 . 1 . 2 3 . 1 1 . 1 . 1 . Storage 1 | 1 . . . . . . . . . . . . . Processor 5 | . . 1 3 . 1 . . . . . . . . Hackware 5 | . . . 1 2 1 . . . . 1 . . . Protection 2 | . . . . . . . 1 1 . . . . . Artifact . | . . . . . . . . . . . . . . Weapon 12 | 2 2 . 1 3 . 2 . 1 . 1 . . . Energy Gun 1 | . . . 1 . . . . . . . . . . Energy Cannon . | . . . . . . . . . . . . . . Ballistic Gun 9 | 2 2 . . 2 . 2 . 1 . . . . . Ballistic Cannon . | . . . . . . . . . . . . . . Launcher 1 | . . . . 1 . . . . . . . . . Special Weapon . | . . . . . . . . . . . . . . Impact Weapon . | . . . . . . . . . . . . . . Slashing Weapon . | . . . . . . . . . . . . . . Piercing Weapon . | . . . . . . . . . . . . . . Special Melee Weapon 1 | . . . . . . . . . . 1 . . . Unidentified Prototypes 5 | . . . 2 2 . . 1 . . . . . . Parts Lost 40 | . . 2 6 7 . . 7 9 . 1 1 . 7 Power 5 | . . . 1 1 . . 1 2 . . . . . Propulsion 14 | . . 1 1 2 . . 4 3 . 1 . . 2 Utility 14 | . . 1 1 4 . . 1 2 . . 1 . 4 Weapon 7 | . . . 3 . . . 1 2 . . . . 1 Highest Loss Streak 8 | . . 1 5 3 . . 5 8 . 1 1 . 7 To Critical Strikes 1 | . . . . 1 . . . . . . . . . Average Slot Usage (%) 87 | . 100 96 84 72 70 89 93 88 86 89 81 69 60 Engine 5 | . 14 11 6 2 6 6 3 . . . . . . Core 3 | . . . . 4 . . 6 8 9 6 5 5 5 Leg 10 | . 28 33 21 . . . . . . . . . 12 Hover 12 | . . . . . . 24 31 32 35 30 25 21 10 Flight 5 | . . . 7 24 26 7 . . . . . . . Device 12 | . 14 7 6 9 16 20 13 13 17 21 20 21 15 Storage 4 | . 14 11 9 . . . . . . . . . . Processor 4 | . . 11 11 2 4 6 5 5 5 5 5 1 . Hackware 11 | . . . 8 20 15 20 17 13 11 15 15 15 12 Protection 1 | . . . . . . . 1 3 5 5 4 . . Ballistic Gun 11 | . 28 22 12 6 . 3 8 5 . . . . . Peak Build Rating 88 | 7 7 12 23 35 45 63 85 88 66 77 67 65 66 Average Rating 38 | 5 6 10 17 28 37 54 72 74 62 72 65 63 56 On Entrance 41 | . 7 7 12 23 24 45 63 83 61 66 66 57 64 Naked Turns . | . . . . . . . . . . . . . . Heaviest Build 49 | 12 15 17 17 15 17 27 49 49 23 24 24 21 21 Greatest Support 70 | 20 20 30 45 20 20 44 70 70 64 64 41 41 60 Greatest Overweight (x) 4 | 2 . . . 1 . 1 1 . . . . . 4 Average Overweight (x) . | . . . . . . . . . . . . . . Largest Inventory Capacity 8 | 8 8 8 8 8 5 5 5 5 5 5 5 5 5 Average Capacity 6 | 7 8 8 8 5 5 5 5 5 5 5 5 5 5 Most Carried 8 | 3 8 8 8 5 5 5 5 5 5 4 2 4 5 Average Carried 5 | 2 6 7 6 4 4 4 4 4 4 1 1 2 4 Final Capacity 8 | 8 8 8 8 5 5 5 5 5 5 5 5 5 5 Final Carried 8 | 3 8 8 4 5 5 5 5 5 4 1 2 4 5 Class Distribution -------------------- 44% | Hacker-Mutant 28% | Mutant 14% | Hacker-Sprinter 12% | Scavenger-Mutant Dominant Class ---------------- Mutant | -10/Materials Mutant | -9/Materials Scavenger-Mutant | -8/Materials Hacker-Sprinter | -7/Factory Hacker-Sprinter | -6/Factory Hacker-Mutant | -6/DSF Hacker-Mutant | -5/Factory Hacker-Mutant | -5/Extension Hacker-Mutant | -5/Cetus Hacker-Mutant | -4/Factory Hacker-Mutant | -4/Waste Hacker-Mutant | -4/Factory Hacker-Mutant | -4/DSF Resources | -11 -10 -9 -8 -7 -6 -6 -5 -5 -5 -4 -4 -4 -4 ----------- Run | Yrd Mat Mat Mat Fac Fac DSF Fac Ext Cet Fac Was Fac DSF Matter Collected 1582 | 284 134 291 53 201 . 144 345 116 . . . . 14 Remotely . | . . . . . . . . . . . . . . Salvage Created 1402 | 103 274 399 53 83 . . 490 . . . . . . Parts 76 | 6 14 23 1 6 . . 26 . . . . . . Haulers Intercepted 5 | . 2 2 . 1 . . . . . . . . . Recyclers Shooed 1 | 1 . . . . . . . . . . . . . Parts Field Recycled . | . . . . . . . . . . . . . . Retrieved Matter . | . . . . . . . . . . . . . . Parts Self-Destructed . | . . . . . . . . . . . . . . Prevented . | . . . . . . . . . . . . . . Kills | -11 -10 -9 -8 -7 -6 -6 -5 -5 -5 -4 -4 -4 -4 ------- Run | Yrd Mat Mat Mat Fac Fac DSF Fac Ext Cet Fac Was Fac DSF Combat Hostiles Destroyed 19 | . 3 7 1 2 . . 6 . . . . . . Guns 17 | . 3 7 1 . . . 6 . . . . . . AOE 2 | . . . . 2 . . . . . . . . . Classes Destroyed 12 | 2 4 2 . 1 . . 3 . . . . . . Worker 2 | . . . . . . . 2 . . . . . . Builder 1 | . . . . . . . 1 . . . . . . Tunneler 1 | 1 . . . . . . . . . . . . . Hauler 5 | . 2 2 . 1 . . . . . . . . . Recycler 1 | 1 . . . . . . . . . . . . . Operator 3 | . 1 1 . . . . 1 . . . . . . Watcher 1 | . 1 . . . . . . . . . . . . Swarmer 2 | . . . . 2 . . . . . . . . . Grunt 11 | . 3 5 1 . . . 2 . . . . . . Brawler 1 | . . 1 . . . . . . . . . . . Sentry 3 | . . 1 . . . . 2 . . . . . . Hunter 2 | . . . . . . . 2 . . . . . . Best Kill Streak 5 | 2 2 5 1 2 . . 3 . . . . . . Combat Bots Only 4 | . 1 4 1 2 . . 3 . . . . . . Max Kills in Single Turn 2 | 1 1 1 1 2 . . 2 . . . . . . Gunslinging . | . . . . . . . . . . . . . . Exploded 2 | . . . . 2 . . . . . . . . . Melee . | . . . . . . . . . . . . . . Uniques/NPCs Destroyed . | . . . . . . . . . . . . . . Combat | -11 -10 -9 -8 -7 -6 -6 -5 -5 -5 -4 -4 -4 -4 -------- Run | Yrd Mat Mat Mat Fac Fac DSF Fac Ext Cet Fac Was Fac DSF Hostile Shots Fired 508 | . 18 42 64 149 . 4 97 105 . 2 2 . 25 Missed 226 | . 4 12 20 96 . 2 33 52 . . 1 . 6 Damage Taken 5439 | . 198 380 686 848 . 74 1225 1153 . 42 36 . 797 Core 1376 | . . 25 198 419 . 54 235 169 . . 36 . 240 Absorbed by Shields 103 | . . . . . . . . . . 7 12 . 84 Regen/Repaired (Parts) 24 | . . . . 24 . . . . . . . . . Core Remaining (%) 78 | 100 100 93 64 40 . 93 . . 59 . . . . Volleys Fired 128 | 5 31 30 16 6 . . 40 . . . . . . Largest 2 | 2 2 2 2 2 . . 2 . . . . . . Hottest 60 | 40 40 40 40 46 . . 60 . . . . . . Shots Fired 234 | 8 62 60 25 11 . . 68 . . . . . . Gun 233 | 8 62 60 25 10 . . 68 . . . . . . Cannon . | . . . . . . . . . . . . . . Launcher 1 | . . . . 1 . . . . . . . . . Special . | . . . . . . . . . . . . . . Kinetic 233 | 8 62 60 25 10 . . 68 . . . . . . Thermal . | . . . . . . . . . . . . . . Explosive 1 | . . . . 1 . . . . . . . . . Electromagnetic . | . . . . . . . . . . . . . . Robot Hit Streak 13 | 4 8 9 12 1 . . 13 . . . . . . Robot Miss Streak 6 | 1 6 3 2 3 . . 3 . . . . . . Penetration Max 1 | . . . . . . . 1 . . . . . . Secondary Targets 2 | . . . 1 . . . 1 . . . . . . Max Gunslinging Chain 1 | . . . 1 . . . 1 . . . . . . Shots Hit Robots 149 | 7 34 41 15 2 . . 47 . . . 1 . 2 Core Hits 63 | 3 14 17 6 3 . . 20 . . . . . . Critical Kills 4 | . 1 . . . . . 3 . . . . . . Critical Parts Destroyed 3 | . . . . . . . 3 . . . . . . Critical Strikes 8 | . 1 . . . . . 7 . . . . . . Destroy 8 | . 1 . . . . . 7 . . . . . . Melee Attacks 4 | . . . . . . . . . . . 1 . 3 Impact . | . . . . . . . . . . . . . . Slashing . | . . . . . . . . . . . . . . Piercing . | . . . . . . . . . . . . . . Sneak Attacks . | . . . . . . . . . . . . . . Combat Hostiles . | . . . . . . . . . . . . . . Follow-up Attacks . | . . . . . . . . . . . . . . Damage Inflicted 2347 | 69 398 508 192 148 . . 1032 . . . . . . Guns 2235 | 69 398 508 192 50 . . 1018 . . . . . . Cannons . | . . . . . . . . . . . . . . Explosions 98 | . . . . 98 . . . . . . . . . Melee . | . . . . . . . . . . . . . . Ramming 14 | . . . . . . . 14 . . . . . . Kinetic 2235 | 69 398 508 192 50 . . 1018 . . . . . . Thermal . | . . . . . . . . . . . . . . Explosive 98 | . . . . 98 . . . . . . . . . Electromagnetic . | . . . . . . . . . . . . . . Impact . | . . . . . . . . . . . . . . Slashing . | . . . . . . . . . . . . . . Piercing . | . . . . . . . . . . . . . . Highest Corruption 10 | . . . . . . . . . . . 9 9 10 Average Corruption 9 | . . . . . . . . . . . 9 9 9 Corruption Purged . | . . . . . . . . . . . . . . Corruption Blocked . | . . . . . . . . . . . . . . Effects 6 | . . . . . . . . . . . 1 1 4 Message Errors 1 | . . . . . . . . . . . . 1 . Matter Fused 1 | . . . . . . . . . . . . . 1 Heat Flow Errors 1 | . . . . . . . . . . . 1 . . Energy Discharges 2 | . . . . . . . . . . . . . 2 Misdirections 1 | . . . . . . . . . . . . . 1 Overload Shots . | . . . . . . . . . . . . . . Overflow Damage . | . . . . . . . . . . . . . . Projectiles . | . . . . . . . . . . . . . . Explosions . | . . . . . . . . . . . . . . Melee . | . . . . . . . . . . . . . . Knockbacks . | . . . . . . . . . . . . . . Impact . | . . . . . . . . . . . . . . Kinetic . | . . . . . . . . . . . . . . Secondary . | . . . . . . . . . . . . . . Self-Inflicted Damage 7 | . . . . . . . 7 . . . . . . Shots . | . . . . . . . . . . . . . . Rammed 1 | . . . . . . . 1 . . . . . . Targets Rammed 1 | . . . . . . . 1 . . . . . . Kicked . | . . . . . . . . . . . . . . Crushed . | . . . . . . . . . . . . . . Highest Temperature 212 | . 27 . 6 200 . . . . . . 212 . . Average Temperature 77 | . 14 . 6 115 . . . . . . 105 . . Received Heat Transfer 1197 | . 135 159 306 204 . . 162 225 . 6 . . . Siege Activations . | . . . . . . . . . . . . . . Robots Corrupted . | . . . . . . . . . . . . . . Combat Hostiles . | . . . . . . . . . . . . . . Parts Fried . | . . . . . . . . . . . . . . Impact Corruptions . | . . . . . . . . . . . . . . Robots Melted . | . . . . . . . . . . . . . . Combat Hostiles . | . . . . . . . . . . . . . . Parts Melted . | . . . . . . . . . . . . . . Heat Transferred . | . . . . . . . . . . . . . . Parts Sabotaged . | . . . . . . . . . . . . . . Parts Stolen . | . . . . . . . . . . . . . . Parts Stripped . | . . . . . . . . . . . . . . Power Chain Reactions . | . . . . . . . . . . . . . . Alert | -11 -10 -9 -8 -7 -6 -6 -5 -5 -5 -4 -4 -4 -4 ------- Run | Yrd Mat Mat Mat Fac Fac DSF Fac Ext Cet Fac Was Fac DSF Peak Influence 321 | 10 142 199 321 321 156 139 317 315 176 98 7 . . Initial 176 | . 6 14 83 145 156 109 72 133 176 98 7 . . Average 130 | 5 69 108 119 198 156 115 178 205 176 79 6 . . Maximum Alert Level 1 | . . . 1 1 . . 1 1 . . . . . Low Security (%) 76 | 100 100 100 93 31 100 100 60 51 100 100 100 100 100 Level 1 23 | . . . 6 68 . . 39 48 . . . . . Level 2 . | . . . . . . . . . . . . . . Level 3 . | . . . . . . . . . . . . . . Level 4 . | . . . . . . . . . . . . . . Level 5 . | . . . . . . . . . . . . . . High Security . | . . . . . . . . . . . . . . Max Security . | . . . . . . . . . . . . . . Squads Dispatched 14 | . 2 1 3 5 . . 1 1 . . . . 1 Investigation 5 | . . . 2 3 . . . . . . . . . Extermination . | . . . . . . . . . . . . . . Reinforcement 9 | . 2 1 1 2 . . 1 1 . . . . 1 Assault . | . . . . . . . . . . . . . . Garrison . | . . . . . . . . . . . . . . Intercept . | . . . . . . . . . . . . . . Searches Triggered . | . . . . . . . . . . . . . . Construction Impeded . | . . . . . . . . . . . . . . Haulers Reinforced . | . . . . . . . . . . . . . . Active Scanning Responses . | . . . . . . . . . . . . . . Cargo Convoy Interrupts . | . . . . . . . . . . . . . . Stealth | -11 -10 -9 -8 -7 -6 -6 -5 -5 -5 -4 -4 -4 -4 --------- Run | Yrd Mat Mat Mat Fac Fac DSF Fac Ext Cet Fac Was Fac DSF Distress Signals 11 | . . 1 1 6 . . 1 1 1 . . . . Communications Jammed . | . . . . . . . . . . . . . . Distress Signals . | . . . . . . . . . . . . . . Times Spotted 155 | . 11 9 22 53 . 3 21 23 4 1 5 . 3 Peak Tracking Total 21 | . 3 2 15 21 . 1 8 11 5 2 5 . 3 Tactical Retreats 27 | . . . 4 9 . 2 5 5 . 1 1 . . Traps | -11 -10 -9 -8 -7 -6 -6 -5 -5 -5 -4 -4 -4 -4 ------- Run | Yrd Mat Mat Mat Fac Fac DSF Fac Ext Cet Fac Was Fac DSF Traps Triggered 5 | . 1 . . . . 1 . 2 . 1 . . . Indirectly . | . . . . . . . . . . . . . . Trap Hack Attempts . | . . . . . . . . . . . . . . Triggered . | . . . . . . . . . . . . . . Disarmed . | . . . . . . . . . . . . . . Reprogrammed . | . . . . . . . . . . . . . . Reused . | . . . . . . . . . . . . . . Traps Extracted . | . . . . . . . . . . . . . . Installed . | . . . . . . . . . . . . . . Triggered . | . . . . . . . . . . . . . . Machines | -11 -10 -9 -8 -7 -6 -6 -5 -5 -5 -4 -4 -4 -4 ---------- Run | Yrd Mat Mat Mat Fac Fac DSF Fac Ext Cet Fac Was Fac DSF Machines Disabled . | . . . . . . . . . . . . . . Max in Single Turn . | . . . . . . . . . . . . . . Garrison Access 1 | . . . . 1 . . . . . . . . . Machines Repaired . | . . . . . . . . . . . . . . Machines Dismantled . | . . . . . . . . . . . . . . Machines Sabotaged . | . . . . . . . . . . . . . . Overloaded Fab Kills . | . . . . . . . . . . . . . . Hacking | -11 -10 -9 -8 -7 -6 -6 -5 -5 -5 -4 -4 -4 -4 --------- Run | Yrd Mat Mat Mat Fac Fac DSF Fac Ext Cet Fac Was Fac DSF Machines Accessed 31 | . 3 . 9 9 2 . 3 2 . 2 . 1 . Terminals 21 | . 3 . 7 3 2 . 2 2 . 1 . 1 . Fabricators 4 | . . . . 4 . . . . . . . . . Repair Stations 2 | . . . . 1 . . 1 . . . . . . Recycling Units 1 | . . . . . . . . . . 1 . . . Scanalyzers 2 | . . . 2 . . . . . . . . . . Garrison Access 1 | . . . . 1 . . . . . . . . . Total Hacks 86 | . 7 . 38 22 5 . 5 3 . 4 . 2 . Successful 52 | . 3 . 24 16 2 . 2 2 . 2 . 1 . Failed 34 | . 4 . 14 6 3 . 3 1 . 2 . 1 . Catastrophic 7 | . 1 . 3 1 1 . 1 . . . . . . Database Lockouts . | . . . . . . . . . . . . . . Manual 28 | . 2 . 19 5 . . . 2 . . . . . Terminals 59 | . 7 . 25 10 5 . 4 3 . 3 . 2 . Fabricators 9 | . . . . 9 . . . . . . . . . Repair Stations 3 | . . . . 2 . . 1 . . . . . . Recycling Units 1 | . . . . . . . . . . 1 . . . Scanalyzers 13 | . . . 13 . . . . . . . . . . Garrison Access 1 | . . . . 1 . . . . . . . . . Terminal Hacks 17 | . 3 . 6 2 2 . 1 1 . 1 . 1 . Open Door 2 | . . . . . . . 1 1 . . . . . Open DSF 2 | . . . . . 1 . . . . . . 1 . Level Access Points 1 | . . . 1 . . . . . . . . . . Branch Access Points 1 | . . . 1 . . . . . . . . . . Alert Level 5 | . 2 . 1 1 1 . . . . . . . . Unreport Threat 2 | . . . . 1 . . . . . 1 . . . Recall Reinforcements 2 | . . . 2 . . . . . . . . . . Hauler Manifests 1 | . 1 . . . . . . . . . . . . Zone Layout 1 | . . . 1 . . . . . . . . . . Fabricator Hacks 9 | . . . . 9 . . . . . . . . . Network Status 2 | . . . . 2 . . . . . . . . . Load Schematic 3 | . . . . 3 . . . . . . . . . Build 4 | . . . . 4 . . . . . . . . . Repair Station Hacks 3 | . . . . 2 . . 1 . . . . . . Scan Component 2 | . . . . 1 . . 1 . . . . . . Repair 1 | . . . . 1 . . . . . . . . . Recycling Unit Hacks 1 | . . . . . . . . . . 1 . . . Process 1 | . . . . . . . . . . 1 . . . Scanalyzer 13 | . . . 13 . . . . . . . . . . Insert Component 7 | . . . 7 . . . . . . . . . . Analyze 6 | . . . 6 . . . . . . . . . . Garrison Access Hacks 1 | . . . . 1 . . . . . . . . . Seal Access 1 | . . . . 1 . . . . . . . . . Unauthorized Hacks 8 | . . . 5 2 . . . 1 . . . . . Terminals 8 | . . . 5 2 . . . 1 . . . . . Assimilate 4 | . . . 2 2 . . . . . . . . . Botnet 4 | . . . 3 . . . . 1 . . . . . Fabricators . | . . . . . . . . . . . . . . Repair Stations . | . . . . . . . . . . . . . . Recycling Units . | . . . . . . . . . . . . . . Scanalyzers . | . . . . . . . . . . . . . . Garrison Access . | . . . . . . . . . . . . . . Data Cores Recovered 1 | . . . . . . . 1 . . . . . . Used . | . . . . . . . . . . . . . . Hacking Detections 23 | . 3 . 8 6 1 . 3 1 . 1 . . . Full Trace Events 6 | . . . 3 3 . . . . . . . . . Feedback Events . | . . . . . . . . . . . . . . Feedback Blocked . | . . . . . . . . . . . . . . Robot Schematics Acquired . | . . . . . . . . . . . . . . Robots Built . | . . . . . . . . . . . . . . Authchips . | . . . . . . . . . . . . . . Time . | . . . . . . . . . . . . . . Total Robot Build Rating . | . . . . . . . . . . . . . . Part Schematics Acquired 6 | . . . 6 . . . . . . . . . . Parts Built 5 | . . . . 5 . . . . . . . . . Authchips . | . . . . . . . . . . . . . . Time 305 | . . . . 305 . . . . . . . . . Total Part Build Rating 20 | . . . . 20 . . . . . . . . . Parts Repaired 1 | . . . . 1 . . . . . . . . . Time 51 | . . . . 51 . . . . . . . . . Parts Recycled . | . . . . . . . . . . . . . . Recycled Matter 28 | . . . . . . . . . . 28 . . . Retrieved Matter . | . . . . . . . . . . . . . . Retrieved Components . | . . . . . . . . . . . . . . Parts Scanalyzed 6 | . . . 6 . . . . . . . . . . Part Schematics Acquired 6 | . . . 6 . . . . . . . . . . Parts Damaged 1 | . . . 1 . . . . . . . . . . Bothacking | -11 -10 -9 -8 -7 -6 -6 -5 -5 -5 -4 -4 -4 -4 ------------ Run | Yrd Mat Mat Mat Fac Fac DSF Fac Ext Cet Fac Was Fac DSF Used RIF Installer . | . . . . . . . . . . . . . . Robots Hacked . | . . . . . . . . . . . . . . Non-combat . | . . . . . . . . . . . . . . Combat . | . . . . . . . . . . . . . . Robot Hacks Applied . | . . . . . . . . . . . . . . Relay Couplers Released . | . . . . . . . . . . . . . . Fabnet Peak Effective % . | . . . . . . . . . . . . . . Robots Rewired 1 | . . . . . . . . 1 . . . . . Allies Hacked . | . . . . . . . . . . . . . . Hacks Repelled . | . . . . . . . . . . . . . . Allies | -11 -10 -9 -8 -7 -6 -6 -5 -5 -5 -4 -4 -4 -4 -------- Run | Yrd Mat Mat Mat Fac Fac DSF Fac Ext Cet Fac Was Fac DSF Total Allies 5 | . . . 1 2 . . . 2 . . . . . Largest Group 2 | . . . 1 2 . . . 1 . . . . . Highest-Rated Group 52 | . . . 10 52 . . . 31 . . . . . Highest-Rated Ally 31 | . . . 10 26 . . . 31 . . . . . Total Orders . | . . . . . . . . . . . . . . Ally Attacks 7 | . . . . . . . . 7 . . . . . Total Damage 103 | . . . . . . . . 103 . . . . . Kills 2 | . . . . . . . . 2 . . . . . Allies Corrupted . | . . . . . . . . . . . . . . Allies Melted 1 | . . . . 1 . . . . . . . . . Intel | -11 -10 -9 -8 -7 -6 -6 -5 -5 -5 -4 -4 -4 -4 ------- Run | Yrd Mat Mat Mat Fac Fac DSF Fac Ext Cet Fac Was Fac DSF Robot Analysis Total . | . . . . . . . . . . . . . . Derelict Logs Recovered . | . . . . . . . . . . . . . . Drone Launches . | . . . . . . . . . . . . . . Drone Recoveries . | . . . . . . . . . . . . . . Exploration | -11 -10 -9 -8 -7 -6 -6 -5 -5 -5 -4 -4 -4 -4 ------------- Run | Yrd Mat Mat Mat Fac Fac DSF Fac Ext Cet Fac Was Fac DSF Turns Passed 2916 | 82 470 334 258 528 54 70 588 175 31 159 71 35 61 Spaces Moved 3601 | 53 299 177 273 1023 147 114 804 305 68 77 131 64 66 Core 16 | 15 . . . . . . . . . . . . 1 Treads . | . . . . . . . . . . . . . . Legs 654 | 38 299 177 112 . . . . . . . . . 28 Wheels . | . . . . . . . . . . . . . . Hover 1581 | . . . . . . 95 804 305 68 77 131 64 37 Flight 1350 | . . . 161 1023 147 19 . . . . . . . Fastest Speed 29 | 50 120 120 34 29 31 31 40 44 44 44 48 48 48 Average Speed 55 | 108 120 120 69 32 31 43 48 49 44 45 48 48 68 Slowest Speed 250 | 150 120 120 120 107 31 120 108 59 44 49 48 48 250 Overloaded Moves . | . . . . . . . . . . . . . . Propulsion Burnouts . | . . . . . . . . . . . . . . Robots Hopped 47 | . . . 12 33 2 . . . . . . . . Cave-ins Triggered . | . . . . . . . . . . . . . . Exploration Rate (%) 34 | 4 64 24 34 27 4 83 18 58 23 3 72 2 71 Regions Visited 13 Branch Regions 2 Pre-discovered Areas . | . . . . . . . . . . . . . . Known Exits Taken 3 | . . . 1 . 1 . . . . . . 1 . Unknown Exits Taken 7 | 1 1 1 . 1 . . 1 1 1 . . . . Scrap Searched . | . . . . . . . . . . . . . . Spaces Dug . | . . . . . . . . . . . . . . Terrain Destroyed 7 | . . . . 5 . . 2 . . . . . . Melee . | . . . . . . . . . . . . . . Projectile 2 | . . . . . . . 2 . . . . . . AOE 5 | . . . . 5 . . . . . . . . . Terrain Rammed . | . . . . . . . . . . . . . . Walls Destroyed . | . . . . . . . . . . . . . . Machines Disabled . | . . . . . . . . . . . . . . Actions | -11 -10 -9 -8 -7 -6 -6 -5 -5 -5 -4 -4 -4 -4 --------- Run | Yrd Mat Mat Mat Fac Fac DSF Fac Ext Cet Fac Was Fac DSF Total 4237 | 67 355 242 305 1168 151 133 934 327 68 201 138 68 80 Wait 381 | . 10 13 8 148 . . 68 5 . 120 6 . 3 Move 3502 | 52 298 176 250 961 142 113 803 304 67 77 130 63 66 Hop 40 | . . . 10 28 2 . . . . . . . . Pick Up 38 | 3 6 8 3 3 2 3 2 4 . . 1 3 . Fast Attach 49 | 7 1 1 4 11 2 7 8 3 . . . . 5 Attach 26 | . . 3 6 3 3 . 2 4 1 3 . 1 . Detach 3 | . . . 1 1 . . . . . . . . 1 Swap 13 | . 4 3 1 1 . . 4 . . . . . . Drop 41 | . 5 8 6 6 . 6 6 . . 1 . 1 2 Fire 128 | 5 31 30 16 6 . . 40 . . . . . . Melee 4 | . . . . . . . . . . . 1 . 3 Ram 1 | . . . . . . . 1 . . . . . . Kick . | . . . . . . . . . . . . . . Crush . | . . . . . . . . . . . . . . Escape Stasis 9 | . . . . . . 4 . 5 . . . . . Rewire 2 | . . . . . . . . 2 . . . . . Trap . | . . . . . . . . . . . . . . Miscellaneous . | . . . . . . . . . . . . . . Route ------- -11/Scrapyard -10/Materials (discovered 2 exits: [*Mat] / [*Min]) -9/Materials -8/Materials (discovered 5 exits: *Fac x3 / Sto x2) -7/Factory -6/Factory -6/DSF -5/Factory -5/Extension (discovered 2 exits: *Fac / [*Cet]) -5/Cetus -4/Factory -4/Waste -4/Factory -4/DSF History --------- Turn | Location | Event 7 | -11/Scrapyard | Discovered new exit (range 16) 83 | -11/Scrapyard | Entered Materials 253 | -10/Materials | Discovered new exit (range 14) 303 | -10/Materials | Build established: Mutant 489 | -10/Materials | Discovered new exit (range 9) 553 | -10/Materials | Entered another Materials area 553 | -9/Materials | Evolved 2 slots: Propulsion x1, Utility x1 866 | -9/Materials | Discovered new exit (range 16) 887 | -9/Materials | Entered another Materials area 887 | -8/Materials | Evolved 2 slots: Propulsion x1, Utility x1 1066 | -8/Materials | Build established: Scavenger-Mutant 1105 | -8/Materials | Lost 5 parts (1p1n1u2w) 1106 | -8/Materials | Identified exit to Factory 1134 | -8/Materials | Identified exit to Storage 1145 | -8/Materials | Entered Factory 1145 | -7/Factory | Evolved 2 slots: Propulsion x1, Utility x1 1177 | -7/Factory | Noticed a derelict Sapper rigging charges 1350 | -7/Factory | Fabricated Adv. Reaction Control System (x2) 1359 | -7/Factory | Fabricated Imp. Flight Unit? 1502 | -7/Factory | Build established: Hacker-Sprinter 1504 | -7/Factory | Fabricated Imp. Flight Unit? 1552 | -7/Factory | Repaired Imp. Flight Unit? 1593 | -7/Factory | Lost 3 parts (1p1n1u) 1637 | -7/Factory | Fabricated Imp. Flight Unit (x1) 1641 | -7/Factory | Core integrity fell below 50% 1662 | -7/Factory | Discovered new exit (range 10) 1673 | -7/Factory | Entered another Factory area 1673 | -6/Factory | Evolved 2 slots: Utility x2 1720 | -6/Factory | Identified exit to DSF 1727 | -6/Factory | Entered DSF 1769 | -6/DSF | Additional patrols routed to DSF 1790 | -6/DSF | Discovered new exit (range 15) 1797 | -6/DSF | Entered Factory 1797 | -5/Factory | Evolved 2 slots: Power x1, Propulsion x1 2029 | -5/Factory | Build established: Hacker-Mutant 2176 | -5/Factory | Lost 5 parts (1p4n) 2178 | -5/Factory | Found Imp. Powered Armor 2383 | -5/Factory | Discovered new exit (range 6) 2385 | -5/Factory | Entered Extension 2442 | -5/Extension | Rescued a captive Derelict 2479 | -5/Extension | Spotted B-75 Beast 2482 | -5/Extension | Spotted B-75 Beast 2545 | -5/Extension | Discovered new exit (range 16) 2546 | -5/Extension | Discovered new exit (range 14) 2549 | -5/Extension | Lost 8 parts (2p3n1u2w) 2560 | -5/Extension | Entered Cetus 2567 | -5/Cetus | Spotted Cetus Guard 2568 | -5/Cetus | Spotted Cetus Guard 2568 | -5/Cetus | Spotted Cetus Guard 2578 | -5/Cetus | Discovered new exit (range 16) 2591 | -5/Cetus | Entered Factory 2591 | -4/Factory | Evolved 2 slots: Utility x2 2747 | -4/Factory | Discovered new exit (range 3) 2750 | -4/Factory | Sucked down chute 2750 | -4/Factory | Entered Waste 2759 | -4/Waste | Spotted C-40 Crusher 2761 | -4/Waste | Spotted C-40 Crusher 2761 | -4/Waste | Spotted C-40 Crusher 2765 | -4/Waste | EMP discharged 2780 | -4/Waste | Spotted C-40 Crusher 2780 | -4/Waste | Spotted C-40 Crusher 2791 | -4/Waste | Discovered new exit (range 16) 2800 | -4/Waste | Spotted C-40 Crusher 2814 | -4/Waste | Crushed by Compactor (1 part destroyed, 2 dropped) 2821 | -4/Waste | Entered Factory 2856 | -4/Factory | Identified exit to DSF 2856 | -4/Factory | Entered DSF 2885 | -4/DSF | Additional patrols routed to DSF 2899 | -4/DSF | System corruption reached 10% 2917 | -4/DSF | Self-destructed Last Messages --------------- 02898_ Knocked back. 02899_ Hacking Suite destroyed. 02899_ Critical hit (Blast). 02902_ Imp. VSS Leg severed. 02904_ System corrupted: Matter fused (-5). 02904_ Penetrated by Slug. 02904_ Knocked back. 02904_ Sneak attack on A-15 Conveyor. 02904_ A-15 Conveyor system offline. 02905_ Imp. Datajack destroyed. 02908_ Imp. VSS Leg severed. 02909_ System Shield destroyed. 02909_ Imp. VSS Leg destroyed. 02909_ Knocked back. 02910_ Acquired 3 matter. 02911_ Cmb. Gravmag System severed. 02913_ Imp. VSS Leg destroyed. 02913_ Knocked back. 02913_ Acquired 6 matter. 02915_ Adv. Shield Generator severed. Map ----- +----------------------------------------------------+ | ???????????????????????????????????????? | | ???????????????????????????????????????? | | ???????????????????????????????????????? | | ???????????????????????????????????????? | | ???????????????????????????????????????? | | ???????????????????????????????????????? | | ???????????????????????????????????????? | | ???????????????????????????????????????? | | ???????????????????????????????????????? | | ???????????? ??? ??????????????????????? | | ???????????? ??????????????????????? | | ????????????# #??????????????????????? | | ???????????## ##?????????????????????? | | ???????????]] ?????????????????????? | | ????????????] ??????????????????????? | | ????????????] ??????????????????????? | | ??????????### ###????????????????????? | | ??????????#!! !!#????????????????????? | | ??????????#!! !!#????????????#???????? | | ??????###??!! !????????????[????????? | | ####### ###?# #?#########?? ###??????? | | ##= !### ###===# #? #??????? | | #== ! A A##===# ## !#??????? | | = !^#??????? | | % % H = c !!!#??????? | | % = % ! @ ^!#??????? | | #[[[##A A;#!!!#!c!## !!#??????? | | ## #[[[### ###!!!#!!!#???!!#??????? | | ##########?# #?#########????????????? | | !!#???????!! !!?????????????????????? | | !!#??????#!! !!#????????????????????? | | !!#??????#!! !!#????????????????????? | | ###??????### ###????????????????????? | | !!#????????[ ?#????????????????????? | | !!#???????[[ #????????????????????? | | ##########[[ ?????????????????????? | | ###!!#!!!### ##?????????????????????? | | ##!!#!!!### ###????????????????????? | | #????????????????????? | | #????????????????????? | | ""## # # #????????????????????? | | ""######### #????????????????????? | | "##?????????#######????????????????????? | | "#?????????????????????????????????????? | | "#?????????????????????????????????????? | | #??????????????????????????????????????? | | ???????????????????????????????????????? | | ???????????????????????????????????????? | | ???????????????????????????????????????? | | ???????????????????????????????????????? | +----------------------------------------------------+ Best States ------------- Heat Dissipation 74 Energy Generation 38 Energy Capacity 385 Matter Stores 300 Matter Capacity 300 Sight Range 16 Robot Scan Range 14 Terrain Scan Range 20 Terrain Scan Density 110 Armor Coverage 400 Evasion (%) 76 Offensive Hacking 22 Defensive Hacking 10 Item Schematics ----------------- Imp. Flight Unit | -8/Materials | Scanalyzed Hacking Suite | -8/Materials | Scanalyzed System Shield | -8/Materials | Scanalyzed Visual Processing Unit | -8/Materials | Scanalyzed Cooling System | -8/Materials | Scanalyzed Datajack | -8/Materials | Scanalyzed Robot Schematics ------------------ None Fabricated ------------ Adv. Reaction Control System | x2 | -7/Factory | Preloaded Imp. Flight Unit | x1 | -7/Factory Imp. Flight Unit | x1 | -7/Factory Imp. Flight Unit | x1 | -7/Factory Alien Tech Used ----------------- None Achievements -------------- None Challenges ------------ None Game ------ Seed LinearCoolantGun Manual? 0 Play Time 00:52:48 Cumulative 73.3 hours Start 2025.03.15 @ 20:29:30 End 2025.03.16 @ 18:07:09 Sessions 3 Manual Loads 0 Difficulty Rogue Special Mode None Game No. 108 Rogue 108 Adventurer 0 Explorer 0 Win Type - Total 1 Types 1/0/0/0/0/0/0/0/0 Lore% 30 Gallery% 46 Achievement% 39 Wizard Run 0 Options --------- Layout 1 ASCII 1 Keyboard 0 Movement Numpad Keybinds 0 Fullscreen 1 Font 24/Smallcaps Map View 50x35 Zoom Use 0% Tactical HUD 1 Map Filters NONE Filters NONE Steam 1 RUN: ecd871fd-a3b7-4ac4-b2eb-bcd8bf544d72